fUST/lending_fUST_20250529
["ID","MTS","AMOUNT","RATE_DAILY","PERIOD"]
[362921108,1748521853982,-420.0,0.00021084,2]
[362921109,1748521853991,-430.0,0.00021095,2]
[362921110,1748521854001,-430.0,0.00021095,2]
[362921111,1748521854011,-430.0,0.00021095,2]
[362921112,1748521854020,-430.0,0.00021095,2]
[362921113,1748521854030,-430.0,0.00021095,2]
[362921114,1748521854040,-430.0,0.00021095,2]
[362921115,1748521854050,-430.0,0.00021095,2]
[362921116,1748521854065,-430.0,0.00021095,2]
[362921117,1748521854075,-430.0,0.00021095,2]
[362921118,1748521854084,-430.0,0.00021095,2]
[362921119,1748521854094,-430.0,0.00021095,2]
[362921120,1748521854104,-430.0,0.00021095,2]
[362921122,1748521854115,-430.0,0.00021095,2]
[362921124,1748521854125,-445.11214421,0.00021095,2]
[362921126,1748521854137,-430.0,0.00021095,2]
[362921128,1748521854147,-430.0,0.00021095,2]
[362921130,1748521854157,-430.0,0.00021095,2]
[362921132,1748521854166,-430.0,0.00021095,2]
[362921134,1748521854176,-430.0,0.00021095,2]
[362921136,1748521854185,-430.0,0.00021095,2]
[362921138,1748521854195,-430.0,0.00021095,2]
[362921139,1748521854205,-430.0,0.00021095,2]
[362921141,1748521854215,-441.95115847,0.00021095,2]
[362921143,1748521854226,-444.24,0.00021095,2]
[362921145,1748521854236,-430.0,0.00021095,2]
[362921147,1748521854246,-349.58,0.00021095,2]
[362921149,1748521854256,-430.0,0.00021095,2]
[362921151,1748521854265,-430.0,0.00021095,2]
[362921153,1748521854275,-430.0,0.00021095,2]
[362921155,1748521854285,-430.0,0.00021095,2]
[362921157,1748521854294,-529.67,0.00021095,2]
[362921159,1748521854306,-430.0,0.00021095,2]
[362921161,1748521854315,-430.0,0.00021095,2]
[362921163,1748521854325,-809.22,0.00021095,2]
[362921165,1748521854334,-430.0,0.00021095,2]
[362921167,1748521854345,-430.0,0.00021095,2]
[362921169,1748521854355,-430.0,0.00021095,2]
[362921171,1748521854365,-430.0,0.00021095,2]
[362921173,1748521854375,-430.0,0.00021095,2]
[362921175,1748521854385,-430.0,0.00021095,2]
[362921177,1748521854395,-430.0,0.00021095,2]
[362921179,1748521854405,-430.0,0.00021095,2]
[362921181,1748521854414,-631.56,0.00021095,2]
[362921182,1748521854423,-430.0,0.00021095,2]
[362921184,1748521854433,-430.0,0.00021095,2]
[362921186,1748521854443,-430.0,0.00021095,2]
[362921188,1748521854453,-430.0,0.00021095,2]
[362921190,1748521854463,-550.71906561,0.00021095,2]
[362921192,1748521854472,-430.0,0.00021095,2]
[362921194,1748521854482,-430.0,0.00021095,2]
[362921196,1748521854492,-430.0,0.00021095,2]
[362921198,1748521854501,-430.0,0.00021095,2]
[362921200,1748521854511,-430.0,0.00021095,2]
[362921202,1748521854521,-430.0,0.00021095,2]
[362921204,1748521854532,-430.0,0.00021095,2]
[362921206,1748521854541,-188.88568768,0.00021095,2]
[362921208,1748521854550,-430.0,0.00021095,2]
[362921210,1748521854561,-306.35003313,0.00021095,2]
[362921212,1748521854571,-430.0,0.00021095,2]
[362921214,1748521854580,-472.88,0.00021095,2]
[362921216,1748521854589,-430.0,0.00021095,2]
[362921218,1748521854599,-430.0,0.00021095,2]
[362921220,1748521854609,-892.51,0.00021095,2]
[362921221,1748521854618,-430.0,0.00021095,2]
[362921223,1748521854627,-430.0,0.00021095,2]
[362921225,1748521854637,-430.0,0.00021095,2]
[362921227,1748521854646,-430.0,0.00021095,2]
[362921229,1748521854656,-430.0,0.00021095,2]
[362921231,1748521854665,-430.0,0.00021095,2]
[362921233,1748521854675,-430.0,0.00021095,2]
[362921235,1748521854685,-430.0,0.00021095,2]
[362921237,1748521854695,-430.0,0.00021095,2]
[362921239,1748521854704,-430.0,0.00021095,2]
[362921241,1748521854714,-430.0,0.00021095,2]
[362921243,1748521854723,-430.0,0.00021095,2]
[362921245,1748521854734,-430.0,0.00021095,2]
[362921247,1748521854743,-430.0,0.00021095,2]
[362921249,1748521854752,-430.0,0.00021095,2]
[362921250,1748521854762,-430.0,0.00021095,2]
[362921252,1748521854772,-430.0,0.00021095,2]
[362921254,1748521854781,-500.0,0.00021164,2]
[362921256,1748521854790,-222.01983251,0.00021269,2]
[362921258,1748521854800,-993.6628224,0.00021279,5]
[362921260,1748521854811,-430.0,0.00021369,2]
[362921262,1748521854821,-430.0,0.00021369,2]
[362921264,1748521854831,-430.0,0.00021369,2]
[362921266,1748521854840,-430.0,0.00021369,2]
[362921268,1748521854850,-461.18,0.00021369,2]
[362921270,1748521854859,-430.0,0.00021369,2]
[362921272,1748521854868,-430.0,0.00021369,2]
[362921274,1748521854877,-430.0,0.00021369,2]
[362921276,1748521854887,-430.0,0.00021369,2]
[362921277,1748521854897,-384.06865273,0.00021369,2]
[362921278,1748521854906,-430.0,0.00021369,2]
[362921279,1748521854915,-430.0,0.00021369,2]
[362921280,1748521854925,-430.0,0.00021369,2]
[362921281,1748521854935,-430.0,0.00021369,2]
[362921282,1748521854945,-430.0,0.00021369,2]
[362921283,1748521854955,-430.0,0.00021369,2]
[362921284,1748521854965,-430.0,0.00021369,2]
[362921285,1748521854975,-430.0,0.00021369,2]
[362921286,1748521854986,-430.0,0.00021369,2]
[362921287,1748521854996,-444.24,0.00021369,2]
[362921288,1748521855005,-430.0,0.00021369,2]
[362921289,1748521855015,-430.0,0.00021369,2]
[362921290,1748521855025,-430.0,0.00021369,2]
[362921291,1748521855036,-430.0,0.00021369,2]
[362921292,1748521855045,-430.0,0.00021369,2]
[362921293,1748521855057,-529.67,0.00021369,2]
[362921294,1748521855068,-430.0,0.00021369,2]
[362921295,1748521855078,-430.0,0.00021369,2]
[362921296,1748521855087,-809.22,0.00021369,2]
[362921297,1748521855096,-430.0,0.00021369,2]
[362921298,1748521855106,-514.8189457,0.00021369,2]
[362921299,1748521855116,-430.0,0.00021369,2]
[362921300,1748521855125,-430.0,0.00021369,2]
[362921301,1748521855135,-430.0,0.00021369,2]
[362921302,1748521855146,-430.0,0.00021369,2]
[362921303,1748521855157,-430.0,0.00021369,2]
[362921304,1748521855167,-430.0,0.00021369,2]
[362921305,1748521855247,-631.56,0.00021369,2]
[362921306,1748521855257,-430.0,0.00021369,2]
[362921307,1748521855268,-175.76,0.00021369,2]
[362921308,1748521855278,-430.0,0.00021369,2]
[362921309,1748521855287,-430.0,0.00021369,2]
[362921310,1748521855297,-430.0,0.00021369,2]
[362921311,1748521855308,-430.0,0.00021369,2]
[362921312,1748521855318,-430.0,0.00021369,2]
[362921313,1748521855328,-430.0,0.00021369,2]
[362921314,1748521855338,-430.0,0.00021369,2]
[362921315,1748521855348,-430.0,0.00021369,2]
[362921317,1748521855358,-430.0,0.00021369,2]
[362921319,1748521855368,-430.0,0.00021369,2]
[362921321,1748521855378,-430.0,0.00021369,2]
[362921323,1748521855387,-472.88,0.00021369,2]
[362921325,1748521855396,-430.0,0.00021369,2]
[362921327,1748521855406,-430.0,0.00021369,2]
[362921329,1748521855415,-892.51,0.00021369,2]
[362921331,1748521855425,-430.0,0.00021369,2]
[362921333,1748521855435,-430.0,0.00021369,2]
[362921334,1748521855445,-430.0,0.00021369,2]
[362921335,1748521855454,-430.0,0.00021369,2]
[362921337,1748521855464,-430.0,0.00021369,2]
[362921339,1748521855474,-430.0,0.00021369,2]
[362921341,1748521855484,-430.0,0.00021369,2]
[362921343,1748521855494,-430.0,0.00021369,2]
[362921345,1748521855504,-430.0,0.00021369,2]
[362921347,1748521855514,-430.0,0.00021369,2]
[362921349,1748521855525,-430.0,0.00021369,2]
[362921350,1748521855535,-430.0,0.00021369,2]
[362921352,1748521855545,-430.0,0.00021369,2]
[362921353,1748521855555,-430.0,0.00021369,2]
[362921354,1748521855565,-430.0,0.00021369,2]
[362921355,1748521855575,-154.27060806,0.000214,2]
[362921356,1748521855585,-165.246113,0.00021404,2]
[362921357,1748521855595,-993.6628224,0.00021521,5]
[362921358,1748521855604,-501.38712862,0.00021591,2]
[362921359,1748521855614,-190.62,0.00021643,2]
[362921360,1748521855624,-430.0,0.00021643,2]
[362921361,1748521855634,-430.0,0.00021643,2]
[362921362,1748521855643,-430.0,0.00021643,2]
[362921363,1748521855653,-430.0,0.00021643,2]
[362921364,1748521855663,-430.0,0.00021643,2]
[362921365,1748521855673,-445.85260338,0.00021643,2]
[362921366,1748521855683,-430.0,0.00021643,2]
[362921367,1748521855694,-430.0,0.00021643,2]
[362921368,1748521855705,-430.0,0.00021643,2]
[362921369,1748521855715,-430.0,0.00021643,2]
[362921370,1748521855725,-430.0,0.00021643,2]
[362921371,1748521855735,-430.0,0.00021643,2]
[362921372,1748521855746,-430.0,0.00021643,2]
[362921373,1748521855756,-430.0,0.00021643,2]
[362921374,1748521855767,-430.0,0.00021643,2]
[362921375,1748521855777,-430.0,0.00021643,2]
[362921376,1748521855787,-444.24,0.00021643,2]
[362921377,1748521855797,-430.0,0.00021643,2]
[362921379,1748521855808,-430.0,0.00021643,2]
[362921381,1748521855817,-430.0,0.00021643,2]
[362921383,1748521855827,-430.0,0.00021643,2]
[362921384,1748521855837,-430.0,0.00021643,2]
[362921386,1748521855846,-529.67,0.00021643,2]
[362921387,1748521855855,-430.0,0.00021643,2]
[362921389,1748521855864,-430.0,0.00021643,2]
[362921391,1748521855874,-809.22,0.00021643,2]
[362921393,1748521855883,-430.0,0.00021643,2]
[362921395,1748521855893,-308.8,0.00021643,2]
[362921397,1748521855903,-430.0,0.00021643,2]
[362921399,1748521855912,-430.0,0.00021643,2]
[362921401,1748521855922,-430.0,0.00021643,2]
[362921403,1748521855932,-430.0,0.00021643,2]
[362921405,1748521855942,-631.56,0.00021643,2]
[362921407,1748521855952,-430.0,0.00021643,2]
[362921409,1748521855961,-430.0,0.00021643,2]
[362921411,1748521855971,-430.0,0.00021643,2]
[362921413,1748521855980,-430.0,0.00021643,2]
[362921415,1748521855990,-430.0,0.00021643,2]
[362921417,1748521856000,-430.0,0.00021643,2]
[362921419,1748521856009,-430.0,0.00021643,2]
[362921421,1748521856019,-430.0,0.00021643,2]
[362921423,1748521856029,-430.0,0.00021643,2]
[362921425,1748521856039,-430.0,0.00021643,2]
[362921427,1748521856049,-430.0,0.00021643,2]
[362921429,1748521856062,-472.88,0.00021643,2]
[362921431,1748521856072,-341.63231252,0.00021643,2]
[362921433,1748521856081,-430.0,0.00021643,2]
[362921435,1748521856091,-892.51,0.00021643,2]
[362921437,1748521856102,-430.0,0.00021643,2]
[362921439,1748521856111,-430.0,0.00021643,2]
[362921441,1748521856121,-430.0,0.00021643,2]
[362921442,1748521856131,-430.0,0.00021643,2]
[362921444,1748521856140,-430.0,0.00021643,2]
[362921446,1748521856150,-430.0,0.00021643,2]
[362921448,1748521856159,-430.0,0.00021643,2]
[362921450,1748521856169,-430.0,0.00021643,2]
[362921452,1748521856179,-430.0,0.00021643,2]
[362921454,1748521856189,-554.17,0.00021643,2]
[362921456,1748521856199,-430.0,0.00021643,2]
[362921458,1748521856208,-430.0,0.00021643,2]
[362921460,1748521856218,-430.0,0.00021643,2]
[362921462,1748521856228,-430.0,0.00021643,2]
[362921464,1748521856238,-500.0,0.00021669,2]
[362921466,1748521856248,-993.6628224,0.00021762,5]
[362921468,1748521856257,-430.0,0.00021917,2]
[362921470,1748521856267,-470.86628721,0.00021917,2]
[362921472,1748521856276,-430.0,0.00021917,2]
[362921474,1748521856286,-430.0,0.00021917,2]
[362921476,1748521856295,-362.61763877,0.00021917,2]
[362921477,1748521856305,-430.0,0.00021917,2]
[362921479,1748521856314,-430.0,0.00021917,2]
[362921480,1748521856324,-151.37663522,0.00021917,2]
[362921482,1748521856333,-430.0,0.00021917,2]
[362921484,1748521856344,-430.0,0.00021917,2]
[362921486,1748521856353,-430.0,0.00021917,2]
[362921487,1748521856363,-444.24,0.00021917,2]
[362921489,1748521856372,-430.0,0.00021917,2]
[362921491,1748521856381,-430.0,0.00021917,2]
[362921493,1748521856391,-430.0,0.00021917,2]
[362921495,1748521856401,-424.11361612,0.00021917,2]
[362921497,1748521856410,-430.0,0.00021917,2]
[362921499,1748521856419,-529.67,0.00021917,2]
[362921501,1748521856428,-430.0,0.00021917,2]
[362921503,1748521856438,-430.0,0.00021917,2]
[362921505,1748521856446,-809.22,0.00021917,2]
[362921507,1748521856456,-430.0,0.00021917,2]
[362921509,1748521856466,-430.0,0.00021917,2]
[362921511,1748521856476,-430.0,0.00021917,2]
[362921513,1748521856485,-430.0,0.00021917,2]
[362921515,1748521856495,-430.0,0.00021917,2]
[362921517,1748521856504,-631.56,0.00021917,2]
[362921519,1748521856513,-430.0,0.00021917,2]
[362921521,1748521856522,-430.0,0.00021917,2]
[362921523,1748521856532,-430.0,0.00021917,2]
[362921525,1748521856542,-430.0,0.00021917,2]
[362921527,1748521856551,-430.0,0.00021917,2]
[362921529,1748521856563,-430.0,0.00021917,2]
[362921531,1748521856572,-430.0,0.00021917,2]
[362921533,1748521856581,-430.0,0.00021917,2]
[362921535,1748521856591,-430.0,0.00021917,2]
[362921537,1748521856601,-430.0,0.00021917,2]
[362921539,1748521856610,-430.0,0.00021917,2]
[362921541,1748521856620,-472.88,0.00021917,2]
[362921543,1748521856629,-430.0,0.00021917,2]
[362921544,1748521856638,-892.51,0.00021917,2]
[362921546,1748521856648,-430.0,0.00021917,2]
[362921547,1748521856657,-430.0,0.00021917,2]
[362921549,1748521856666,-430.0,0.00021917,2]
[362921551,1748521856677,-430.0,0.00021917,2]
[362921553,1748521856687,-430.0,0.00021917,2]
[362921562,1748521856764,-430.0,0.00021917,2]
[362921564,1748521856774,-430.0,0.00021917,2]
[362921566,1748521856786,-430.0,0.00021917,2]
[362921569,1748521856797,-430.0,0.00021917,2]
[362921571,1748521856808,-430.0,0.00021917,2]
[362921573,1748521856817,-430.0,0.00021917,2]
[362921575,1748521856828,-430.0,0.00021917,2]
[362921577,1748521856838,-430.0,0.00021917,2]
[362921579,1748521856848,-500.0,0.00021918,2]
[362921581,1748521856858,-500.0,0.00021918,2]
[362921583,1748521856869,-500.0,0.00021918,2]
[362921585,1748521856879,-500.0,0.00021918,2]
[362921587,1748521856888,-500.0,0.00021918,2]
[362921589,1748521856898,-500.0,0.00021918,2]
[362921591,1748521856907,-500.0,0.00021918,2]
[362921593,1748521856916,-500.0,0.00021918,2]
[362921595,1748521856926,-500.0,0.00021918,2]
[362921597,1748521856935,-373.18914971,0.00021918,2]
[362921599,1748521856944,-500.0,0.00021918,2]
[362921601,1748521856954,-500.0,0.00021918,2]
[362921603,1748521856963,-411.05,0.00022,7]
[362921605,1748521856972,-27479.73,0.00022,7]
[362921607,1748521856982,-878.19,0.00022,7]
[362921609,1748521856991,-3389.5,0.00022,2]
[362921611,1748521857001,-993.6628224,0.00022003,6]
[362921612,1748521857011,-430.0,0.00022191,2]
[362921614,1748521857020,-430.0,0.00022191,2]
[362921616,1748521857029,-430.0,0.00022191,2]
[362921618,1748521857038,-430.0,0.00022191,2]
[362921620,1748521857047,-430.0,0.00022191,2]
[362921622,1748521857062,-200.0,0.00022191,2]
[362921624,1748521857071,-200.0,0.00022191,2]
[362921626,1748521857081,-200.0,0.00022191,2]
[362921628,1748521857093,-200.0,0.00022191,2]
[362921630,1748521857104,-200.0,0.00022191,2]
[362921632,1748521857113,-200.0,0.00022191,2]
[362921634,1748521857123,-256.34727452,0.00022191,2]
[362921636,1748521857132,-430.0,0.00022191,2]
[362921638,1748521857143,-444.24,0.00022191,2]
[362921640,1748521857152,-434.18,0.00022191,2]
[362921642,1748521857161,-424.48293153,0.00022191,2]
[362921644,1748521857171,-430.0,0.00022191,2]
[362921646,1748521857180,-529.67,0.00022191,2]
[362921648,1748521857189,-430.0,0.00022191,2]
[362921650,1748521857199,-430.0,0.00022191,2]
[362921652,1748521857209,-809.22,0.00022191,2]
[362921654,1748521857219,-430.0,0.00022191,2]
[362921656,1748521857228,-481.59,0.00022191,2]
[362921658,1748521857238,-430.0,0.00022191,2]
[362921660,1748521857248,-326.94,0.00022191,2]
[362921662,1748521857257,-430.0,0.00022191,2]
[362921664,1748521857267,-631.56,0.00022191,2]
[362921666,1748521857276,-430.0,0.00022191,2]
[362921667,1748521857287,-430.0,0.00022191,2]
[362921669,1748521857296,-430.0,0.00022191,2]
[362921671,1748521857307,-430.0,0.00022191,2]
[362921674,1748521857316,-430.0,0.00022191,2]
[362921675,1748521857326,-430.0,0.00022191,2]
[362921678,1748521857336,-430.0,0.00022191,2]
[362921679,1748521857346,-430.0,0.00022191,2]
[362921681,1748521857356,-430.0,0.00022191,2]
[362921683,1748521857365,-430.0,0.00022191,2]
[362921685,1748521857375,-430.0,0.00022191,2]
[362921687,1748521857384,-472.88,0.00022191,2]
[362921689,1748521857394,-892.51,0.00022191,2]
[362921691,1748521857404,-430.0,0.00022191,2]
[362921694,1748521857414,-430.0,0.00022191,2]
[362921695,1748521857423,-430.0,0.00022191,2]
[362921697,1748521857433,-430.0,0.00022191,2]
[362921699,1748521857442,-430.0,0.00022191,2]
[362921702,1748521857452,-430.0,0.00022191,2]
[362921704,1748521857462,-430.0,0.00022191,2]
[362921706,1748521857472,-430.0,0.00022191,2]
[362921708,1748521857481,-430.0,0.00022191,2]
[362921710,1748521857491,-430.0,0.00022191,2]
[362921712,1748521857501,-430.0,0.00022191,2]
[362921714,1748521857511,-430.0,0.00022191,2]
[362921716,1748521857520,-199.2,0.00022191,2]
[362921718,1748521857529,-1000.0,0.00022217,2]
[362921720,1748521857539,-993.6628224,0.00022245,6]
[362921722,1748521857548,-711.11,0.00022339,6]
[362921724,1748521857558,-251.23553649,0.00022355,2]
[362921726,1748521857568,-711.11,0.00022439,7]
[362921728,1748521857578,-430.0,0.00022465,2]
[362921730,1748521857588,-430.0,0.00022465,2]
[362921732,1748521857598,-430.0,0.00022465,2]
[362921734,1748521857607,-444.24,0.00022465,2]
[362921736,1748521857617,-529.67,0.00022465,2]
[362921738,1748521857626,-430.0,0.00022465,2]
[362921740,1748521857635,-430.0,0.00022465,2]
[362921742,1748521857644,-809.22,0.00022465,2]
[362921744,1748521857654,-430.0,0.00022465,2]
[362921746,1748521857664,-430.0,0.00022465,2]
[362921748,1748521857674,-430.0,0.00022465,2]
[362921750,1748521857683,-631.56,0.00022465,2]
[362921752,1748521857693,-430.0,0.00022465,2]
[362921754,1748521857703,-430.0,0.00022465,2]
[362921756,1748521857712,-430.0,0.00022465,2]
[362921758,1748521857721,-430.0,0.00022465,2]
[362921760,1748521857730,-430.0,0.00022465,2]
[362921762,1748521857739,-430.0,0.00022465,2]
[362921764,1748521857748,-517.16,0.00022465,2]
[362921766,1748521857758,-430.0,0.00022465,2]
[362921768,1748521857769,-430.0,0.00022465,2]
[362921770,1748521857778,-430.0,0.00022465,2]
[362921772,1748521857788,-472.88,0.00022465,2]
[362921774,1748521857797,-892.51,0.00022465,2]
[362921776,1748521857807,-430.0,0.00022465,2]
[362921778,1748521857818,-430.0,0.00022465,2]
[362921780,1748521857828,-430.0,0.00022465,2]
[362921782,1748521857843,-430.0,0.00022465,2]
[362921784,1748521857854,-430.0,0.00022465,2]
[362921786,1748521857864,-430.0,0.00022465,2]
[362921788,1748521857874,-430.0,0.00022465,2]
[362921790,1748521857883,-430.0,0.00022465,2]
[362921792,1748521857894,-297.39,0.00022465,2]
[362921794,1748521857903,-430.0,0.00022465,2]
[362921796,1748521857911,-430.0,0.00022465,2]
[362921798,1748521857921,-993.6628224,0.00022486,7]
[362921800,1748521857930,-711.11,0.00022539,3]
[362921802,1748521857939,-711.11,0.00022639,5]
[362921803,1748521857949,-993.6628224,0.00022728,7]
[362921805,1748521857958,-711.11,0.00022739,2]
[362921806,1748521857968,-430.0,0.00022739,2]
[362921808,1748521857978,-444.24,0.00022739,2]
[362921810,1748521857988,-529.67,0.00022739,2]
[362921812,1748521857998,-430.0,0.00022739,2]
[362921813,1748521858007,-430.0,0.00022739,2]
[362921815,1748521858016,-809.22,0.00022739,2]
[362921817,1748521858026,-430.0,0.00022739,2]
[362921818,1748521858036,-430.0,0.00022739,2]
[362921820,1748521858046,-430.0,0.00022739,2]
[362921822,1748521858057,-631.56,0.00022739,2]
[362921824,1748521858070,-465.0,0.00022739,2]
[362921825,1748521858080,-430.0,0.00022739,2]
[362921827,1748521858089,-430.0,0.00022739,2]
[362921829,1748521858099,-430.0,0.00022739,2]
[362921833,1748521858179,-430.0,0.00022739,2]
[362921835,1748521858189,-430.0,0.00022739,2]
[362921837,1748521858198,-430.0,0.00022739,2]
[362921838,1748521858207,-494.47,0.00022739,2]
[362921840,1748521858217,-435.74,0.00022739,2]
[362921842,1748521858226,-472.88,0.00022739,2]
[362921843,1748521858235,-892.51,0.00022739,2]
[362921845,1748521858245,-430.0,0.00022739,2]
[362921847,1748521858255,-430.0,0.00022739,2]
[362921849,1748521858264,-430.0,0.00022739,2]
[362921850,1748521858274,-430.0,0.00022739,2]
[362921852,1748521858283,-304.12,0.00022739,2]
[362921854,1748521858292,-430.0,0.00022739,2]
[362921856,1748521858302,-430.0,0.00022739,2]
[362921857,1748521858312,-430.0,0.00022739,2]
[362921859,1748521858322,-711.11,0.00022839,3]
[362921861,1748521858331,-711.11,0.00022939,2]
[362921863,1748521858341,-993.6628224,0.00022969,8]
[362921864,1748521858352,-124622.97143396,0.00022999,2]
[362921866,1748521858362,-430.0,0.00023013,2]
[362921868,1748521858372,-444.24,0.00023013,2]
[362921870,1748521858381,-529.67,0.00023013,2]
[362921871,1748521858391,-336.44,0.00023013,2]
[362921873,1748521858400,-206.54,0.00023013,2]
[362921875,1748521858410,-809.22,0.00023013,2]
[362921877,1748521858419,-430.0,0.00023013,2]
[362921878,1748521858428,-631.56,0.00023013,2]
[362921879,1748521858438,-430.0,0.00023013,2]
[362921880,1748521858448,-430.0,0.00023013,2]
[362921881,1748521858458,-472.88,0.00023013,2]
[362921882,1748521858467,-892.51,0.00023013,2]
[362921883,1748521858478,-430.0,0.00023013,2]
[362921884,1748521858488,-430.0,0.00023013,2]
[362921885,1748521858497,-430.0,0.00023013,2]
[362921886,1748521858507,-711.11,0.00023039,6]
[362921887,1748521858516,-711.11,0.00023139,6]
[362921888,1748521858526,-154.27060806,0.0002315,2]
[362921889,1748521858535,-460.3702483,0.00023151,2]
[362921890,1748521858545,-993.6628224,0.0002321,8]
[362921891,1748521858555,-711.11,0.00023239,5]
[362921892,1748521858566,-430.0,0.00023287,2]
[362921893,1748521858576,-444.24,0.00023287,2]
[362921894,1748521858586,-529.67,0.00023287,2]
[362921895,1748521858596,-809.22,0.00023287,2]
[362921896,1748521858605,-430.0,0.00023287,2]
[362921897,1748521858615,-631.56,0.00023287,2]
[362921898,1748521858625,-430.0,0.00023287,2]
[362921899,1748521858634,-430.0,0.00023287,2]
[362921900,1748521858644,-472.88,0.00023287,2]
[362921901,1748521858653,-892.51,0.00023287,2]
[362921902,1748521858663,-430.0,0.00023287,2]
[362921903,1748521858673,-430.0,0.00023287,2]
[362921904,1748521858683,-430.0,0.00023287,2]
[362921905,1748521858693,-3389.5,0.000233,2]
[362921906,1748521858702,-711.11,0.00023339,3]
[362921907,1748521858712,-500.0,0.00023356,2]
[362921908,1748521858722,-711.11,0.00023439,5]
[362921909,1748521858732,-993.6628224,0.00023452,9]
[362921910,1748521858741,-711.11,0.00023539,4]
[362921911,1748521858751,-444.24,0.00023561,2]
[362921912,1748521858761,-529.67,0.00023561,2]
[362921913,1748521858771,-809.22,0.00023561,2]
[362921914,1748521858780,-370.35,0.00023561,2]
[362921915,1748521858790,-631.56,0.00023561,2]
[362921916,1748521858799,-430.0,0.00023561,2]
[362921917,1748521858808,-430.0,0.00023561,2]
[362921918,1748521858818,-472.88,0.00023561,2]
[362921919,1748521858827,-892.51,0.00023561,2]
[362921920,1748521858837,-430.0,0.00023561,2]
[362921921,1748521858847,-430.0,0.00023561,2]
[362921922,1748521858857,-430.0,0.00023561,2]
[362921923,1748521858866,-878.19,0.000236,7]
[362921924,1748521858876,-711.11,0.00023639,5]
[362921925,1748521858885,-993.6628224,0.00023693,9]
[362921926,1748521858895,-207.4,0.00023717,2]
[362921927,1748521858905,-711.11,0.00023739,5]
[362921928,1748521858915,-507.50772185,0.0002375,5]
[362921929,1748521858925,-27479.73,0.000238,7]
[362921930,1748521858935,-444.24,0.00023835,2]
[362921931,1748521858944,-529.67,0.00023835,2]
[362921933,1748521858954,-809.22,0.00023835,2]
[362921935,1748521858963,-631.56,0.00023835,2]
[362921937,1748521858973,-430.0,0.00023835,2]
[362921939,1748521858983,-472.88,0.00023835,2]
[362921941,1748521858993,-892.51,0.00023835,2]
[362921942,1748521859003,-430.0,0.00023835,2]
[362921944,1748521859013,-430.0,0.00023835,2]
[362921946,1748521859023,-430.0,0.00023835,2]
[362921948,1748521859033,-711.11,0.00023839,5]
[362921950,1748521859043,-167.40859968,0.000239,2]
[362921952,1748521859053,-746.81126656,0.000239,2]
[362921953,1748521859066,-405.0,0.00023929,2]
[362921955,1748521859076,-993.6628224,0.00023934,10]
[362921957,1748521859086,-711.11,0.00023939,2]